bitfinex/quotes_SOLUSD_20250416
["timestamp","ask_amount","ask_price","bid_price","bid_amount"]
[1744785614291,9.18526494,126.02,125.98,7.93746374]
[1744785614474,0.03,126.02,125.99,9.15526494]
[1744785614987,0.03,126.02,125.98,17.09272868]
[1744785615499,0.03,126.02,126.01,9.15526494]
[1744785616075,0.03,126.02,126.01,27.8049138]
[1744785616397,0.03,126.02,126.01,35.7407919]
[1744785623493,0.03,126.02,126.01,17.09114304]
[1744785623899,0.03,126.02,126.0,11.44]
[1744785624088,9.18526494,126.02,126.0,11.44]
[1744785624280,9.18526494,126.02,125.97,7.93839803]
[1744785624473,9.15526494,126.01,125.97,17.09366297]
[1744785624681,9.15526494,126.0,125.96,11.44]
[1744785624880,9.15526494,125.99,125.96,11.44]
[1744785625374,9.15526494,126.0,125.96,11.44]
[1744785625573,9.15526494,125.99,125.96,11.44]
[1744785626198,9.15526494,125.99,125.96,19.37888573]
[1744785626505,10.73656494,126.01,125.97,9.15526494]
[1744785627505,18.67245458,126.01,125.96,28.53415067]
[1744785627706,9.15526494,126.0,125.96,28.53415067]
[1744785628179,9.15526494,126.0,125.96,11.44]
[1744785628607,9.15526494,126.0,125.95,17.09471912]
[1744785628608,9.15526494,125.99,125.94,8.0030538]
[1744785628903,9.15526494,125.98,125.94,17.15831874]
[1744785629591,7.93713786,125.99,125.94,17.15831874]
[1744785629799,9.15526494,125.99,125.95,9.15526494]
[1744785630105,15.57266494,126.0,125.95,9.15526494]
[1744785630986,23.50943448,126.0,125.95,17.09471464]
[1744785632388,9.15526494,126.0,125.96,9.15526494]
[1744785634108,9.51729719,126.01,125.96,9.15526494]
[1744785634403,1.5813,126.01,125.96,17.09428904]
[1744785634611,26.03,126.02,125.98,9.15526494]
[1744785634812,35.18526494,126.02,125.98,9.15526494]
[1744785635891,26.03,126.02,125.98,9.15526494]
[1744785636092,26.03,126.02,125.99,9.15526494]
[1744785636704,26.03,126.02,125.99,17.09229171]
[1744785636705,0.03,126.02,125.99,17.09229171]
[1744785637097,0.03,126.02,126.0,9.15526494]
[1744785639518,0.03,126.02,125.99,9.15526494]
[1744785641416,0.03,126.02,125.99,17.09187961]
[1744785642324,0.03,126.02,125.98,17.09275677]
[1744785642820,0.03,126.02,125.99,9.15526494]
[1744785643509,0.03,126.02,125.99,17.09181036]
[1744785644616,0.03,126.02,125.98,17.09273567]
[1744785648026,0.03,126.02,125.97,26.58804689]
[1744785648226,0.03,126.02,125.98,9.15526494]
[1744785649224,0.03,126.02,125.99,17.09205882]
[1744785654227,0.03,126.02,125.98,17.09303283]
[1744785655433,0.03,126.02,126.0,7.93650793]
[1744785656129,0.03,126.02,126.01,9.15526494]
[1744785657534,0.03,126.02,126.01,17.09114304]
[1744785658331,0.03,126.02,126.01,35.7407919]
[1744785661607,0.03,126.02,126.01,42.1917919]
[1744785666137,0.03,126.02,126.01,61.7407919]
[1744785666340,0.03,126.02,126.01,35.7407919]
[1744785666634,0.03,126.02,126.01,61.7407919]
[1744785669941,0.03,126.02,126.01,7.9358781]
[1744785671139,10.82376494,126.02,125.97,9.15526494]
[1744785671334,1.6685,126.02,125.99,9.15526494]
[1744785671633,0.03,126.02,126.0,9.15526494]
[1744785671826,0.03,126.02,125.98,9.15526494]
[1744785672034,0.03,126.02,125.99,7.93713786]
[1744785672223,0.03,126.02,126.0,9.15526494]
[1744785673738,0.03,126.02,125.99,17.0924028]
[1744785674132,0.03,126.02,125.99,7.93713786]
[1744785674335,0.03,126.02,125.99,17.0924028]
[1744785675043,0.03,126.02,125.98,17.09303283]
[1744785675542,0.03,126.02,125.99,9.15526494]
[1744785676931,0.03,126.02,126.0,7.93650793]
[1744785678226,0.03,126.02,125.98,17.09303283]
[1744785681634,0.03,126.02,125.99,9.15526494]
[1744785683649,0.03,126.02,126.0,7.93650793]
[1744785684247,0.03,126.02,126.0,17.09177287]
[1744785685248,0.03,126.02,125.99,9.15526494]
[1744785686954,0.03,126.02,126.0,7.93650793]
[1744785688958,9.18526494,126.02,125.97,7.93839803]
[1744785689459,4.134,125.95,125.94,0.063]
[1744785690683,4.134,125.95,125.94,17.15826869]
[1744785691235,4.134,125.95,125.94,35.80791755]
[1744785692963,4.134,125.95,125.94,61.80791755]
[1744785695171,1.6125,126.01,125.95,18.64964886]
[1744785695447,1.6125,126.01,125.98,9.15526494]
[1744785695647,0.03,126.02,126.0,9.15526494]
[1744785695859,0.03,126.02,125.99,9.15526494]
[1744785697348,0.03,126.02,126.0,7.93650793]
[1744785697545,0.03,126.02,125.99,7.93682361]
[1744785697853,9.15526494,126.01,125.98,19.33748224]
[1744785698059,9.18526494,126.02,125.98,19.33748224]
[1744785701043,9.18526494,126.02,125.98,28.49274718]
[1744785701243,0.03,126.02,125.99,9.15526494]
[1744785701857,0.03,126.02,125.98,28.49274718]
[1744785702353,9.18526494,126.02,125.98,28.49274718]
[1744785703965,9.18526494,126.02,125.98,19.33748224]
[1744785705866,9.15526494,126.01,125.98,19.33748224]
[1744785706173,9.18526494,126.02,125.98,19.33748224]
[1744785709066,9.18526494,126.02,125.98,7.93748224]
[1744785710774,0.03,126.02,125.98,17.09274718]
[1744785711473,9.18526494,126.02,125.98,7.93748224]
[1744785712272,9.15526494,126.01,125.98,7.93748224]
[1744785712679,9.15526494,125.99,125.96,11.4]
[1744785712852,9.15526494,125.98,125.94,0.063]
[1744785713469,9.15526494,125.98,125.95,7.93934643]
[1744785714067,9.15526494,125.98,125.94,8.00328902]
[1744785714264,9.15526494,125.99,125.94,17.15855396]
[1744785714458,10.69516494,126.0,125.95,9.15526494]
[1744785715577,9.15526494,125.99,125.95,9.15526494]
[1744785715778,9.15526494,125.99,125.94,37.00927652]
[1744785716281,17.09242364,125.99,125.94,17.15855396]
[1744785716484,9.15526494,125.97,125.94,8.00328902]
[1744785717167,9.15526494,125.98,125.94,8.00328902]
[1744785720683,9.15526494,125.97,125.94,8.00328902]
[1744785720865,9.15526494,125.96,125.94,0.063]
[1744785721777,9.15526494,125.98,125.94,0.063]
[1744785722081,9.15526494,125.98,125.94,9.21826494]
[1744785722273,9.15526494,125.98,125.95,7.93965859]
[1744785724697,9.15526494,125.98,125.94,0.063]
[1744785724698,9.15526494,125.97,125.94,8.00328902]
[1744785725866,9.15526494,125.97,125.94,0.063]
[1744785730793,7.93743644,125.99,125.94,0.063]
[1744785731005,9.15526494,125.97,125.94,0.063]
[1744785733004,9.15526494,125.95,125.94,0.063]
[1744785735289,9.15526494,125.97,125.94,0.063]
[1744785737196,17.09250149,125.99,125.94,9.21826494]
[1744785737396,17.09250149,125.99,125.95,7.93965859]
[1744785737598,9.15526494,125.98,125.95,7.93965859]
[1744785738396,19.36556754,126.02,125.97,9.15526494]
[1744785738697,17.12083248,126.02,125.97,9.15526494]
[1744785738996,9.15526494,126.01,125.97,9.15526494]
[1744785739396,9.15526494,126.01,125.97,17.09344572]
[1744785741395,9.18526494,126.02,125.97,17.09344572]
[1744785742396,17.12062696,126.02,125.97,17.09344572]
[1744785742597,9.15526494,126.01,125.97,7.93818078]
[1744785744402,9.15526494,126.01,125.97,17.09344572]
[1744785745094,17.12062696,126.02,125.97,17.09344572]
[1744785747098,0.03,126.02,126.0,9.15526494]
[1744785747288,0.03,126.02,126.01,9.15526494]
[1744785748912,0.03,126.02,126.01,17.09114304]
[1744785749720,0.03,126.02,126.01,35.7407919]
[1744785750909,0.03,126.02,126.01,17.09114304]
[1744785752114,0.03,126.02,126.01,54.45114304]
[1744785752296,0.03,126.02,126.01,73.1007919]
[1744785765422,0.03,126.06,126.02,26.49264886]
[1744785765746,0.03,126.06,126.05,53.8049138]
[1744785767223,0.03,126.06,126.05,61.73827357]
[1744785767430,0.03,126.07,126.06,27.8049138]
[1744785767717,0.03,126.07,126.06,39.1649138]
[1744785768097,0.03,126.07,126.06,75.78597356]
[1744785768525,0.03,126.07,126.06,83.718704]
[1744785770614,0.03,126.07,126.06,47.09764424]
[1744785777119,0.03,126.07,126.06,90.124904]
[1744785777945,0.03,126.07,126.06,53.50384424]
[1744785781213,0.03,126.07,126.06,47.09764424]
[1744785782843,0.03,126.07,126.06,19.29273044]
[1744785783426,0.03,126.07,126.06,47.09764424]
[1744785792269,0.03,126.07,126.06,37.9423793]
[1744785792471,0.03,126.07,126.06,47.09764424]
[1744785792971,0.03,126.07,126.06,28.44799538]
[1744785793344,0.03,126.07,126.06,19.29273044]
[1744785798565,0.03,126.07,126.03,9.15526494]
[1744785798787,9.18526494,126.07,126.02,28.43051331]
[1744785799658,9.18526494,126.07,126.02,19.27524837]
[1744785799874,9.18526494,126.07,126.02,28.43051331]
[1744785800569,0.03,126.07,126.03,9.15526494]
[1744785800779,0.03,126.07,126.04,9.15526494]
[1744785800969,0.03,126.07,126.05,9.15526494]
[1744785801963,0.03,126.07,126.04,9.15526494]
[1744785802571,0.03,126.07,126.05,9.15526494]
[1744785802772,0.03,126.07,126.06,7.93273044]
[1744785805777,0.03,126.07,126.06,17.08799538]
[1744785806770,0.03,126.07,126.06,7.93273044]
[1744785808176,10.74506494,126.07,126.02,28.43033036]
[1744785808370,9.15526494,126.06,126.02,19.27506542]
[1744785808561,9.15526494,126.06,126.02,28.43033036]
[1744785808764,10.74506494,126.07,126.02,28.43033036]
[1744785808962,9.15526494,126.06,126.02,28.43033036]
[1744785809270,9.15526494,126.06,126.02,19.27506542]
[1744785810880,9.15526494,126.06,126.02,28.43033036]
[1744785811068,10.74506494,126.07,126.03,9.15526494]
[1744785811776,10.74506494,126.07,126.02,48.26845129]
[1744785811978,10.74506494,126.07,126.02,39.11318635]
[1744785812172,9.15526494,126.06,126.02,48.26845129]
[1744785812983,10.74506494,126.07,126.02,48.26845129]
[1744785814058,9.15526494,126.06,126.02,39.11318635]
[1744785814261,9.15526494,126.04,126.0,7.99930215]
[1744785814464,9.15526494,126.03,126.0,7.99930215]
[1744785815083,9.15526494,126.02,126.0,0.063]
[1744785816782,9.15526494,126.01,126.0,0.063]
[1744785817167,15.63903815,126.03,126.0,0.063]
[1744785817368,9.15526494,126.01,126.0,0.063]
[1744785817683,10.68516494,126.03,126.0,0.063]
[1744785819163,10.68516494,126.03,126.0,7.99950793]
[1744785821084,9.15526494,126.02,126.0,0.063]
[1744785827181,10.68516494,126.03,126.0,0.063]
[1744785830492,9.15526494,126.02,126.0,0.063]
[1744785833196,9.15526494,126.01,126.0,0.063]
[1744785837398,9.15526494,126.02,126.0,0.063]
[1744785837600,9.15526494,126.04,126.0,0.063]
[1744785838096,9.15526494,126.03,126.0,0.063]
[1744785841699,9.15526494,126.02,126.0,0.063]
[1744785843097,9.15526494,126.03,126.0,0.063]
[1744785843509,17.0884389,126.06,126.01,9.15526494]
[1744785843715,17.0884389,126.06,126.02,9.15526494]
[1744785845102,9.15526494,126.06,126.02,17.09008025]
[1744785847410,17.08803173,126.06,126.02,7.93481531]
[1744785848117,9.15526494,126.05,126.02,7.93481531]
[1744785848328,9.15526494,126.05,126.01,7.93557592]
[1744785848610,9.15526494,126.05,126.0,9.21826494]
[1744785848611,9.15526494,126.03,126.0,7.99925951]
[1744785849405,9.15526494,126.03,126.0,0.063]
[1744785849587,9.15526494,126.01,126.0,0.063]
[1744785849998,9.15526494,126.02,126.0,0.063]
[1744785850687,9.15526494,126.03,126.0,0.063]
[1744785851104,9.15526494,126.02,126.0,0.063]
[1744785852812,9.15526494,126.03,126.0,0.063]
[1744785853208,9.15526494,126.04,126.0,9.21826494]
[1744785853401,9.15526494,126.05,126.0,9.21826494]
[1744785854519,9.15526494,126.04,126.0,9.21826494]
[1744785854698,9.15526494,126.04,126.01,7.9358781]
[1744785855310,9.15526494,126.05,126.01,7.9358781]
[1744785856304,9.15526494,126.04,126.01,7.9358781]
[1744785857216,9.15526494,126.04,126.0,0.063]
[1744785857409,9.15526494,126.04,126.0,9.21826494]
[1744785858919,7.93273621,126.06,126.01,9.15526494]
[1744785858920,9.15526494,126.05,126.01,9.15526494]
[1744785859298,9.15526494,126.05,126.0,9.21826494]
[1744785859501,9.15526494,126.04,126.0,9.21826494]
[1744785861107,9.15526494,126.05,126.0,9.21826494]
[1744785861313,9.15526494,126.05,126.01,7.9358781]
[1744785865427,9.18526494,126.07,126.02,10.72016494]
[1744785865634,9.18526494,126.07,126.03,9.15526494]
[1744785865821,17.11753975,126.07,126.02,10.72016494]
[1744785866013,9.15526494,126.06,126.02,1.5649]
[1744785866734,9.15526494,126.05,126.01,7.9358781]
[1744785866937,9.15526494,126.04,126.01,7.9358781]
[1744785867640,9.15526494,126.04,126.0,15.51066494]
[1744785867641,9.15526494,126.02,126.0,0.063]
[1744785868448,9.15526494,126.01,126.0,0.063]
[1744785871040,9.15526494,126.02,126.0,0.063]
[1744785871938,9.15526494,126.03,126.0,0.063]
[1744785872609,7.93420048,126.04,126.0,0.063]
[1744785872942,9.15526494,126.03,126.0,0.063]
[1744785877732,9.15526494,126.01,126.0,0.063]
[1744785877936,35.15526494,126.01,125.95,0.063]
[1744785878244,9.15526494,125.98,125.95,0.063]
[1744785878412,9.15526494,125.99,125.95,0.063]
[1744785879129,9.15526494,125.99,125.95,8.00262426]
[1744785883033,33.93615271,126.01,125.95,17.1578892]
[1744785883345,20.45526494,126.02,125.97,9.15526494]
[1744785884129,28.39065477,126.02,125.97,9.15526494]
[1744785884331,9.15526494,126.01,125.96,15.25566494]
[1744785885239,9.15526494,126.01,125.97,7.93839803]
[1744785885637,9.15526494,126.0,125.96,6.1004]
[1744785885854,9.15526494,125.99,125.96,14.0391094]
[1744785887939,9.15526494,125.99,125.96,6.1004]
[1744785888640,17.09249923,125.99,125.95,0.063]
[1744785888815,17.09249923,125.99,125.95,8.00265743]
[1744785889340,17.09249923,125.99,125.95,0.063]
[1744785889341,9.15526494,125.98,125.95,0.063]
[1744785889541,9.15526494,125.97,125.95,0.063]
[1744785892138,17.09307575,125.98,125.95,0.063]
[1744785893037,9.15526494,125.99,125.95,9.21826494]
[1744785893844,9.15526494,125.99,125.95,17.15745722]
[1744785894445,9.15526494,126.0,125.95,17.15745722]
[1744785894943,17.09185393,126.0,125.95,17.15745722]
[1744785895447,9.15526494,125.99,125.95,17.15745722]
[1744785897450,33.93615459,126.01,125.95,17.15745722]
[1744785897750,9.15526494,126.0,125.95,17.15745722]
[1744785898129,9.15526494,125.99,125.95,17.15745722]
[1744785898461,9.15526494,125.99,125.95,9.21826494]
[1744785900653,9.15526494,125.99,125.95,0.063]
[1744785902048,9.15526494,125.99,125.95,9.21826494]
[1744785902254,9.15526494,126.0,125.95,9.21826494]
[1744785902553,9.15526494,126.0,125.96,7.93902826]
[1744785902848,11.3,126.02,125.97,9.15526494]
[1744785903150,9.15526494,125.98,125.93,4.2187]
[1744785903447,9.15526494,125.94,125.92,0.063]
[1744785903654,9.15526494,125.93,125.92,0.063]
[1744785905651,17.09618449,125.93,125.92,0.063]
[1744785911136,7.94091955,125.93,125.92,0.063]
[1744785911353,19.84484265,125.98,125.92,0.063]
[1744785911533,7.93776789,125.98,125.94,9.15526494]
[1744785911740,7.93776789,125.98,125.95,9.15526494]
[1744785912749,7.93776789,125.98,125.94,9.15526494]
[1744785913051,17.09265473,125.99,125.95,9.15526494]
[1744785913957,17.09265473,125.99,125.94,17.0952906]
[1744785917257,9.15526494,125.98,125.93,15.22836494]
[1744785917462,9.15526494,125.96,125.92,1.6819]
[1744785917758,9.15526494,125.94,125.92,0.063]
[1744785918259,37.3,125.98,125.92,0.063]
[1744785918260,9.15526494,125.95,125.92,0.063]
[1744785919461,7.94028902,125.94,125.92,0.063]
[1744785920360,17.09521764,125.95,125.92,0.063]
[1744785923665,9.15526494,125.93,125.92,0.063]
[1744785924959,9.15526494,125.94,125.92,0.063]
[1744785925541,17.09617403,125.94,125.92,0.063]
[1744785925746,7.94090909,125.94,125.92,0.063]
[1744785926642,9.15526494,125.95,125.92,0.063]
[1744785926852,9.15526494,125.97,125.92,9.21826494]
[1744785927558,17.09397914,125.97,125.92,9.21826494]
[1744785927742,7.9387142,125.97,125.92,17.15969343]
[1744785927940,17.09397914,125.97,125.92,17.15969343]
[1744785928674,7.9387142,125.97,125.93,9.15526494]
[1744785930073,17.09397914,125.97,125.93,9.15526494]
[1744785931150,17.09397914,125.97,125.93,17.09613989]
[1744785932473,7.93776789,125.98,125.93,17.09613989]
[1744785932979,9.15526494,125.97,125.93,17.09613989]
[1744785933470,9.15526494,125.96,125.92,0.063]
[1744785934665,17.09463831,125.96,125.92,0.063]
[1744785935958,7.93776789,125.98,125.92,9.21826494]
[1744785936164,17.09303283,125.98,125.92,0.063]
[1744785936365,17.09303283,125.98,125.93,9.15526494]
[1744785936660,7.93743516,125.99,125.94,10.71346494]
[1744785936852,17.0927001,125.99,125.94,17.07756494]
[1744785937877,17.0927001,125.99,125.94,25.01767256]
[1744785939372,17.09177287,126.0,125.95,9.15526494]
[1744785940152,17.09177287,126.0,125.94,15.86240762]
[1744785940553,17.09177287,126.0,125.95,9.15526494]
[1744785940771,17.09177287,126.0,125.94,15.86240762]
[1744785940952,17.09177287,126.0,125.95,9.15526494]
[1744785941156,17.09145709,126.01,125.96,9.15526494]
[1744785941364,7.93619215,126.01,125.96,9.15526494]
[1744785941663,17.09145709,126.01,125.96,9.15526494]
[1744785942162,17.09145709,126.01,125.96,17.09413889]
[1744785943881,7.93555103,126.02,125.97,9.15526494]
[1744785944064,9.15526494,126.02,125.98,9.15526494]
[1744785944781,9.18526494,126.03,125.98,9.15526494]
[1744785945081,17.12019189,126.03,125.98,17.09265026]
[1744785945469,9.15526494,126.02,125.97,17.0933904]
[1744785946585,17.09070189,126.02,125.97,17.0933904]
[1744785947386,7.93543695,126.02,125.97,17.0933904]
[1744785947685,17.09070189,126.02,125.98,9.15526494]
[1744785947875,0.03,126.03,125.99,7.6068]
[1744785948182,7.96478035,126.03,125.99,16.76206494]
[1744785948577,17.12004529,126.03,125.99,7.6068]
[1744785948888,0.03,126.03,126.0,9.15526494]
[1744785949097,0.03,126.03,125.99,16.76206494]
[1744785949401,0.03,126.03,126.01,9.15526494]
[1744785949882,0.03,126.03,126.0,35.74089852]
[1744785950073,0.03,126.03,126.0,9.15526494]
[1744785950383,0.03,126.03,125.99,35.97909684]
[1744785950777,0.03,126.03,126.0,9.15526494]
[1744785950976,0.03,126.03,125.99,26.8238319]
[1744785950977,0.03,126.03,125.99,35.97909684]
[1744785951994,9.18526494,126.03,125.99,18.8868]
[1744785952290,9.18526494,126.03,125.99,11.28]
[1744785952291,9.15526494,126.02,125.99,11.28]
[1744785952798,0.03,126.03,125.96,1.5432]
[1744785952799,9.15526494,126.0,125.96,1.5432]
[1744785953091,9.15526494,125.99,125.96,1.5432]
[1744785953294,9.15526494,126.0,125.96,1.5432]
[1744785954173,9.15526494,125.99,125.96,1.5432]
[1744785955474,9.15526494,125.99,125.95,23.43709404]
[1744785955671,9.15526494,126.0,125.95,15.49786494]
[1744785955968,9.15526494,125.99,125.95,6.3426]
[1744785958399,17.09281148,125.99,125.95,6.3426]
[1744785963194,17.09281148,125.99,125.95,14.28224044]
[1744785963699,7.93754654,125.99,125.95,23.43750538]
[1744785964197,9.15526494,126.0,125.95,23.43750538]
[1744785964394,17.09085686,126.02,125.97,9.15526494]
[1744785965501,17.09085686,126.02,125.97,17.09356198]
[1744785966993,9.15526494,125.99,125.95,6.3426]
[1744785967793,9.15526494,125.99,125.95,14.28217862]
[1744785968795,9.15526494,126.0,125.96,9.15526494]
[1744785968995,0.03,126.03,125.98,9.15526494]
[1744785969180,9.15526494,126.01,125.97,10.74936494]
[1744785969372,9.15526494,126.01,125.97,1.5941]
[1744785969700,9.15526494,126.0,125.97,1.5941]
[1744785969898,9.15526494,126.0,125.95,23.43744356]
[1744785970499,17.09196077,126.0,125.95,23.43744356]
[1744785971187,9.15526494,125.99,125.95,23.43744356]
[1744785972096,17.09266192,125.99,125.95,6.3426]
[1744785972677,9.15526494,125.99,125.95,6.3426]
[1744785972882,9.15526494,125.99,125.95,14.2822109]
[1744785974876,17.09257309,125.99,125.95,6.3426]
[1744785975400,9.15526494,125.98,125.95,6.3426]
[1744785977606,17.09319972,125.98,125.95,6.3426]
[1744785977906,17.09319972,125.98,125.94,20.81160723]
[1744785978702,9.15526494,125.98,125.94,20.81160723]
[1744785978906,7.9358781,126.01,125.94,29.96687217]
[1744785979108,9.15526494,125.99,125.94,29.96687217]
[1744785980388,7.93545925,126.02,125.96,9.15526494]
[1744785980589,9.15526494,126.01,125.96,15.45466494]
[1744785981104,9.15526494,126.0,125.96,23.39343722]
[1744785981305,9.15526494,126.0,125.96,14.23817228]
[1744785984187,17.09190582,126.0,125.96,6.2994]
[1744785985211,17.09190582,126.0,125.96,14.23840278]
[1744785985405,17.09190582,126.0,125.96,6.2994]
[1744785985606,9.15526494,125.98,125.94,12.8716]
[1744785985911,9.15526494,125.97,125.94,20.81184806]
[1744785987312,9.15526494,125.98,125.94,20.81184806]
[1744785987810,9.15526494,125.97,125.94,11.28]
[1744785988114,9.15526494,125.97,125.93,7.94064596]
[1744785988295,9.15526494,125.96,125.93,7.94064596]
[1744785988812,9.15526494,125.96,125.92,6.7022]
[1744785988813,9.15526494,125.95,125.92,14.64344554]
[1744785989908,9.15526494,125.96,125.92,14.64344554]
[1744785990211,9.15526494,125.96,125.92,23.79871048]
[1744785990391,17.09390865,125.97,125.92,23.79871048]
[1744785992215,27.78001367,125.99,125.92,23.79871048]
[1744785992414,9.15526494,125.97,125.92,23.79871048]
[1744785993420,17.09380253,125.97,125.92,23.79871048]
[1744785994611,17.09323328,125.98,125.93,9.15526494]
[1744785995219,9.15526494,125.97,125.93,9.15526494]
[1744785995713,7.93796834,125.98,125.93,17.09577427]
[1744785995908,9.15526494,125.97,125.93,17.09577427]
[1744785996107,9.15526494,125.97,125.93,7.94050933]
[1744785997415,9.15526494,125.97,125.92,14.6434319]
[1744785997416,9.15526494,125.96,125.92,14.6434319]
[1744785997615,9.15526494,125.94,125.92,0.063]
[1744785997919,9.15526494,125.93,125.92,0.063]
[1744785998105,53.78457067,125.97,125.92,0.063]
[1744785998106,9.15526494,125.94,125.92,0.063]
[1744785998622,53.78457067,125.97,125.92,0.063]
[1744785998824,9.15526494,125.94,125.92,0.063]
[1744786000498,9.15526494,125.95,125.92,0.063]
[1744786000699,17.09455574,125.96,125.92,0.063]
[1744786001807,9.15526494,125.95,125.92,0.063]
[1744786002616,9.15526494,125.96,125.92,0.063]
[1744786003015,9.15526494,125.95,125.92,0.063]
[1744786004522,17.09472863,125.96,125.92,0.063]
[1744786004816,9.15526494,125.95,125.92,0.063]
[1744786010937,17.09501037,125.95,125.92,0.063]
[1744786011729,9.15526494,125.94,125.92,0.063]
[1744786013725,17.09501037,125.95,125.92,0.063]
[1744786016019,9.15526494,125.95,125.92,0.063]
[1744786016440,17.09521171,125.95,125.92,0.063]
[1744786017041,9.15526494,125.94,125.92,0.063]
[1744786020618,17.09521171,125.95,125.92,0.063]
[1744786022220,35.15526494,125.97,125.92,9.21826494]
[1744786022420,43.09397063,125.97,125.93,9.15526494]
[1744786022623,43.09397063,125.97,125.92,0.063]
[1744786022941,43.09397063,125.97,125.92,9.21826494]
[1744786023544,43.09397063,125.97,125.92,17.15952101]
[1744786024751,9.15526494,125.96,125.92,17.15952101]
[1744786026333,43.09397063,125.97,125.92,17.15952101]
[1744786027149,9.15526494,125.96,125.92,17.15952101]
[1744786029741,17.09432292,125.96,125.92,17.15952101]
[1744786031355,17.09432292,125.96,125.92,0.063]
[1744786032428,9.15526494,125.93,125.92,0.063]
[1744786032829,45.7763247,125.93,125.92,0.063]
[1744786033449,53.71724425,125.93,125.92,0.063]
[1744786033628,17.09618449,125.93,125.92,0.063]
[1744786038335,17.10137494,125.93,125.92,0.063]
[1744786039371,72.39284536,125.93,125.91,0.063]
[1744786039659,9.16045539,125.92,125.91,0.063]
[1744786040546,17.10200558,125.92,125.91,0.063]
[1744786043843,35.75165444,125.92,125.91,0.063]
[1744786044040,17.10200558,125.92,125.91,0.063]
[1744786044253,7.9391465,125.96,125.91,9.22345539]
[1744786044442,21.48882339,125.97,125.91,0.063]
[1744786044646,9.16045539,125.96,125.91,0.063]
[1744786044945,9.16045539,125.96,125.92,9.16045539]
[1744786045155,9.16045539,125.96,125.91,9.22345539]
[1744786045467,9.16045539,125.96,125.92,7.94155019]
[1744786046146,9.16045539,125.96,125.92,17.10200558]
[1744786046564,17.09897258,125.97,125.92,17.10200558]
[1744786047248,9.16045539,125.97,125.92,17.10200558]
[1744786047662,9.16045539,125.97,125.92,18.71110558]
[1744786048657,17.09897027,125.97,125.92,18.71110558]
[1744786049057,9.16045539,125.96,125.92,18.71110558]
[1744786049266,9.16045539,125.96,125.92,1.6091]
[1744786049765,9.16045539,125.95,125.92,1.6091]
[1744786052042,17.10016261,125.95,125.91,0.063]
[1744786052455,9.16045539,125.95,125.91,17.16549961]
[1744786053052,9.16045539,125.95,125.91,8.00504422]
[1744786053853,17.10020005,125.95,125.91,0.063]
[1744786054064,9.16045539,125.94,125.91,0.063]
[1744786054574,9.16045539,125.96,125.91,17.16526659]
[1744786055061,9.16045539,125.95,125.91,17.16526659]
[1744786055248,9.16045539,125.95,125.91,8.0048112]
[1744786057356,9.16045539,125.94,125.91,0.063]
[1744786058271,9.16045539,125.96,125.91,9.22345539]
[1744786059471,9.16045539,125.96,125.91,17.16520057]
[1744786060752,9.16045539,125.96,125.92,9.16045539]
[1744786061473,9.16045539,125.96,125.92,17.10152298]
[1744786061675,7.93870775,125.97,125.92,17.10152298]
[1744786061969,26.0,125.98,125.93,15.66275539]
[1744786062156,0.03,125.99,125.95,9.16045539]
[1744786062357,9.19045539,125.99,125.94,10.74835539]
[1744786062556,17.12770953,125.99,125.94,10.74835539]
[1744786063169,9.16045539,125.98,125.94,1.5879]
[1744786063572,9.16045539,125.98,125.94,9.52782518]
[1744786064458,9.16045539,125.96,125.93,6.5023]
[1744786064776,9.16045539,125.95,125.93,6.5023]
[1744786064964,9.16045539,125.96,125.93,6.5023]
[1744786065155,27.81009881,125.99,125.93,14.443204]
[1744786065351,7.96725414,125.99,125.93,23.60365939]
[1744786065556,9.16045539,125.98,125.93,23.60365939]
[1744786065756,9.16045539,125.97,125.93,14.443204]
[1744786073061,9.16045539,125.96,125.93,6.5023]
[1744786074385,17.09961276,125.96,125.93,6.5023]
[1744786076679,9.16045539,125.95,125.91,9.57193393]
[1744786078088,17.10015973,125.95,125.91,9.57193393]
[1744786078294,17.09977231,125.96,125.91,18.73238932]
[1744786079082,9.16045539,125.96,125.91,18.73238932]
[1744786079288,17.09896722,125.97,125.92,9.16045539]
[1744786081090,17.09896722,125.97,125.92,17.1015065]
[1744786082580,9.16045539,125.96,125.92,7.94105111]
[1744786082778,9.16045539,125.96,125.91,9.57185245]
[1744786084696,17.0985561,125.98,125.93,9.16045539]
[1744786085186,17.0985561,125.98,125.92,9.16045539]